fUST/lending_fUST_20260118
["ID","MTS","AMOUNT","RATE_DAILY","PERIOD"]
[402521526,1768695044907,-839.04,0.00016438,2]
[402521528,1768695044916,-500.0,0.00016438,3]
[402521530,1768695044927,-839.04,0.00016438,2]
[402521532,1768695044936,-839.04,0.00016438,2]
[402521534,1768695044945,-839.04,0.00016438,2]
[402521536,1768695044954,-839.04,0.00016438,2]
[402521538,1768695044963,-839.04,0.00016438,2]
[402521540,1768695044973,-500.0,0.00016438,3]
[402521542,1768695044983,-839.04,0.00016438,2]
[402521544,1768695044994,-839.05,0.00016438,2]
[402521546,1768695045005,-500.0,0.00016438,3]
[402521548,1768695045015,-634.35,0.00016438,3]
[402521550,1768695045024,-734.77,0.00016438,3]
[402521552,1768695045033,-500.0,0.00016438,3]
[402521554,1768695045042,-500.0,0.00016438,3]
[402521556,1768695045053,-500.0,0.00016438,3]
[402521558,1768695045063,-858.28,0.00016438,3]
[402521560,1768695045072,-500.0,0.00016438,3]
[402521562,1768695045082,-500.0,0.00016438,3]
[402521564,1768695045092,-500.0,0.00016438,3]
[402521566,1768695045102,-586.75,0.00016438,3]
[402521568,1768695045112,-500.0,0.00016438,3]
[402521570,1768695045122,-500.0,0.00016438,3]
[402521572,1768695045131,-10381.1,0.00016438,3]
[402521574,1768695045141,-500.0,0.00016438,3]
[402521576,1768695045150,-500.0,0.00016438,3]
[402521578,1768695045159,-752.73,0.00016438,3]
[402521580,1768695045169,-500.0,0.00016438,3]
[402521582,1768695045179,-260.63382945,0.00016438,3]
[402521583,1768695045188,-500.0,0.00016438,3]
[402521585,1768695045198,-500.0,0.00016438,3]
[402521588,1768695045208,-500.0,0.00016438,3]
[402521589,1768695045218,-500.0,0.00016438,3]
[402521592,1768695045227,-1168.84,0.00016438,3]
[402521593,1768695045237,-911.42,0.00016438,3]
[402521595,1768695045246,-686.65,0.00016438,3]
[402521597,1768695045255,-500.0,0.00016438,3]
[402521599,1768695045264,-500.0,0.00016438,3]
[402521601,1768695045274,-500.0,0.00016438,3]
[402521603,1768695045283,-500.0,0.00016438,3]
[402521605,1768695045293,-500.0,0.00016438,3]
[402521607,1768695045302,-500.0,0.00016438,3]
[402521609,1768695045311,-836.94,0.00016438,3]
[402521611,1768695045321,-500.0,0.00016438,3]
[402521613,1768695045331,-614.01,0.00016438,3]
[402521615,1768695045340,-1416.41,0.00016438,3]
[402521618,1768695045350,-959.09,0.00016438,3]
[402521620,1768695045359,-500.0,0.00016438,3]
[402521622,1768695045369,-936.37,0.00016438,3]
[402521624,1768695045378,-500.0,0.00016438,3]
[402521626,1768695045387,-500.0,0.00016438,3]
[402521628,1768695045397,-500.0,0.00016438,3]
[402521630,1768695045406,-500.0,0.00016438,3]
[402521632,1768695045416,-500.0,0.00016438,3]
[402521634,1768695045425,-1000.0,0.00016438,2]
[402521635,1768695045435,-940.67,0.00016438,3]
[402521636,1768695045444,-2434.45,0.00016438,3]
[402521637,1768695045454,-500.0,0.00016438,3]
[402521638,1768695045463,-500.0,0.00016438,3]
[402521639,1768695045472,-1554.66,0.00016438,3]
[402521640,1768695045481,-2111.3,0.00016438,3]
[402521641,1768695045490,-718.43,0.00016438,3]
[402521642,1768695045499,-500.0,0.00016438,3]
[402521643,1768695045508,-500.0,0.00016438,3]
[402521644,1768695045517,-467.49360859,0.00016438,3]
[402521645,1768695045526,-500.0,0.00016438,3]
[402521646,1768695045535,-534.20711492,0.00016438,3]
[402521647,1768695045544,-500.0,0.00016438,3]
[402521648,1768695045553,-500.0,0.00016438,3]
[402521650,1768695045562,-752.14,0.00016438,3]
[402521652,1768695045571,-500.0,0.00016438,3]
[402521654,1768695045580,-500.0,0.00016438,3]
[402521656,1768695045589,-500.0,0.00016438,3]
[402521658,1768695045599,-500.0,0.00016438,3]
[402521659,1768695045607,-500.0,0.00016438,3]
[402521662,1768695045617,-500.0,0.00016438,3]
[402521663,1768695045626,-500.0,0.00016438,3]
[402521665,1768695045635,-500.0,0.00016438,3]
[402521667,1768695045645,-500.0,0.00016438,3]
[402521669,1768695045654,-500.0,0.00016438,3]
[402521671,1768695045663,-628.47,0.00016438,3]
[402521673,1768695045672,-1073.42,0.00016438,3]
[402521675,1768695045681,-500.0,0.00016438,3]
[402521677,1768695045691,-500.0,0.00016438,3]
[402521679,1768695045701,-500.0,0.00016438,3]
[402521681,1768695045710,-827.48,0.00016438,3]
[402521683,1768695045720,-500.0,0.00016438,3]
[402521685,1768695045730,-500.0,0.00016438,3]
[402521688,1768695045739,-500.0,0.00016438,3]
[402521690,1768695045749,-500.0,0.00016438,3]
[402521692,1768695045759,-633.96,0.00016438,3]
[402521694,1768695045768,-850.2,0.00016438,3]
[402521696,1768695045778,-500.0,0.00016438,3]
[402521698,1768695045787,-500.0,0.00016438,3]
[402521700,1768695045797,-309.96810054,0.00016438,3]
[402521702,1768695045806,-500.0,0.00016438,3]
[402521703,1768695045815,-500.0,0.00016438,3]
[402521706,1768695045824,-500.0,0.00016438,3]
[402521707,1768695045833,-423.66716387,0.00016438,3]
[402521709,1768695045843,-500.0,0.00016438,3]
[402521712,1768695045852,-435.20636976,0.00016438,3]
[402521713,1768695045862,-500.0,0.00016438,3]
[402521716,1768695045871,-1020.85,0.00016438,3]
[402521717,1768695045880,-500.0,0.00016438,3]
[402521719,1768695045890,-852.94,0.00016438,3]
[402521722,1768695045900,-500.0,0.00016438,3]
[402521724,1768695045910,-500.0,0.00016438,3]
[402521726,1768695045919,-665.3,0.00016438,3]
[402521728,1768695045929,-500.0,0.00016438,3]
[402521730,1768695045938,-1276.22,0.00016438,3]
[402521732,1768695045947,-500.0,0.00016438,3]
[402521734,1768695045956,-584.86,0.00016438,3]
[402521736,1768695045966,-500.0,0.00016438,3]
[402521738,1768695045975,-500.0,0.00016438,3]
[402521740,1768695045988,-500.0,0.00016438,3]
[402521742,1768695045997,-500.0,0.00016438,3]
[402521744,1768695046007,-500.0,0.00016438,3]
[402521746,1768695046016,-500.0,0.00016438,3]
[402521748,1768695046027,-888.49,0.00016438,3]
[402521750,1768695046037,-500.0,0.00016438,3]
[402521752,1768695046047,-500.0,0.00016438,3]
[402521754,1768695046057,-500.0,0.00016438,3]
[402521756,1768695046067,-500.0,0.00016438,3]
[402521758,1768695046076,-500.0,0.00016438,3]
[402521760,1768695046086,-755.39,0.00016438,3]
[402521762,1768695046095,-500.0,0.00016438,3]
[402521764,1768695046105,-500.0,0.00016438,3]
[402521766,1768695046116,-500.0,0.00016438,3]
[402521768,1768695046125,-500.0,0.00016438,3]
[402521771,1768695046135,-500.0,0.00016438,3]
[402521773,1768695046145,-500.0,0.00016438,3]
[402521775,1768695046154,-500.0,0.00016438,3]
[402521777,1768695046163,-172.631544,0.00016438,3]
[402521779,1768695046172,-538.44,0.00016438,3]
[402521781,1768695046182,-500.0,0.00016438,3]
[402521783,1768695046191,-500.0,0.00016438,3]
[402521785,1768695046201,-500.0,0.00016438,3]
[402521786,1768695046212,-500.0,0.00016438,3]
[402521788,1768695046222,-1007.75,0.00016438,3]
[402521790,1768695046231,-500.0,0.00016438,3]
[402521792,1768695046241,-1576.41,0.00016438,3]
[402521794,1768695046250,-500.0,0.00016438,3]
[402521796,1768695046259,-500.0,0.00016438,3]
[402521798,1768695046269,-500.0,0.00016438,3]
[402521801,1768695046278,-1036.77,0.00016438,3]
[402521803,1768695046288,-620.36,0.00016438,3]
[402521805,1768695046297,-500.0,0.00016438,3]
[402521806,1768695046306,-500.0,0.00016438,3]
[402521808,1768695046315,-905.84,0.00016438,3]
[402521810,1768695046324,-500.0,0.00016438,3]
[402521813,1768695046335,-500.0,0.00016438,3]
[402521815,1768695046344,-927.31,0.00016438,3]
[402521817,1768695046353,-911.94,0.00016438,3]
[402521818,1768695046363,-1203.88,0.00016438,3]
[402521821,1768695046372,-500.0,0.00016438,3]
[402521823,1768695046382,-500.0,0.00016438,3]
[402521825,1768695046391,-500.0,0.00016438,3]
[402521826,1768695046400,-500.0,0.00016438,3]
[402521828,1768695046409,-500.0,0.00016438,3]
[402521830,1768695046419,-500.0,0.00016438,3]
[402521832,1768695046428,-551.81,0.00016438,3]
[402521834,1768695046438,-500.0,0.00016438,3]
[402521836,1768695046447,-500.0,0.00016438,3]
[402521838,1768695046456,-571.42,0.00016438,3]
[402521840,1768695046465,-500.0,0.00016438,3]
[402521842,1768695046474,-1013.32,0.00016438,3]
[402521844,1768695046483,-500.0,0.00016438,3]
[402521846,1768695046495,-500.0,0.00016438,3]
[402521848,1768695046504,-527.42325342,0.00016438,3]
[402521851,1768695046514,-500.0,0.00016438,3]
[402521853,1768695046523,-500.0,0.00016438,3]
[402521855,1768695046532,-500.0,0.00016438,3]
[402521856,1768695046542,-2222.48,0.00016438,3]
[402521859,1768695046552,-500.0,0.00016438,3]
[402521860,1768695046561,-500.0,0.00016438,3]
[402521863,1768695046570,-500.0,0.00016438,3]
[402521865,1768695046579,-500.0,0.00016438,3]
[402521867,1768695046589,-500.0,0.00016438,3]
[402521869,1768695046598,-500.0,0.00016438,3]
[402521870,1768695046607,-678.68,0.00016438,3]
[402521873,1768695046618,-450.64316952,0.00016438,3]
[402521875,1768695046635,-500.0,0.00016438,3]
[402521877,1768695046645,-500.0,0.00016438,3]
[402521879,1768695046656,-500.0,0.00016438,3]
[402521881,1768695046674,-500.0,0.00016438,3]
[402521883,1768695046692,-500.0,0.00016438,3]
[402521885,1768695046711,-500.0,0.00016438,3]
[402521887,1768695046721,-500.0,0.00016438,3]
[402521888,1768695046729,-668.69,0.00016438,3]
[402521890,1768695046739,-500.0,0.00016438,3]
[402521893,1768695046748,-225.94247433,0.00016438,3]
[402521895,1768695046758,-264.29964932,0.00016438,3]
[402521897,1768695046767,-500.0,0.00016438,3]
[402521898,1768695046777,-500.0,0.00016438,3]
[402521900,1768695046787,-500.0,0.00016438,3]
[402521902,1768695046796,-938.65,0.00016438,3]
[402521905,1768695046806,-500.0,0.00016438,3]
[402521906,1768695046815,-500.0,0.00016438,3]
[402521908,1768695046824,-485.87912065,0.00016438,3]
[402521910,1768695046834,-500.0,0.00016438,3]
[402521913,1768695046843,-1068.22,0.00016438,3]
[402521914,1768695046853,-5838.81,0.00016438,3]
[402521916,1768695046862,-500.0,0.00016438,3]
[402521918,1768695046871,-500.0,0.00016438,3]
[402521920,1768695046881,-1177.19,0.00016438,3]
[402521922,1768695046891,-500.0,0.00016438,3]
[402521924,1768695046900,-504.02216576,0.00016438,3]
[402521926,1768695046909,-500.0,0.00016438,3]
[402521928,1768695046919,-500.0,0.00016438,2]
[402521930,1768695046928,-500.0,0.00016438,3]
[402521932,1768695046938,-656.71,0.00016438,3]
[402521934,1768695046948,-500.0,0.00016438,3]
[402521937,1768695046961,-531.66,0.00016438,3]
[402521939,1768695046975,-500.0,0.00016438,3]
[402521942,1768695046991,-1325.56,0.00016438,3]
[402521944,1768695047004,-500.0,0.00016438,3]
[402521946,1768695047015,-675.17,0.00016438,3]
[402521948,1768695047028,-500.0,0.00016438,2]
[402521951,1768695047040,-500.0,0.00016438,3]
[402521953,1768695047054,-642.78,0.00016438,3]
[402521955,1768695047066,-500.0,0.00016438,3]
[402521957,1768695047078,-500.0,0.00016438,3]
[402521960,1768695047091,-158.856128,0.00016438,3]
[402521962,1768695047103,-500.0,0.00016438,2]
[402521964,1768695047116,-473.31431115,0.00016438,2]
[402521967,1768695047129,-500.0,0.00016438,3]
[402521969,1768695047142,-500.0,0.00016438,2]
[402521971,1768695047155,-718.84,0.00016438,3]
[402521974,1768695047167,-712.39,0.00016438,3]
[402521976,1768695047181,-575.2,0.00016438,3]
[402521978,1768695047192,-500.0,0.00016438,3]
[402521981,1768695047204,-500.0,0.00016438,3]
[402521983,1768695047216,-598.89865208,0.00016438,3]
[402521985,1768695047230,-500.0,0.00016438,3]
[402521987,1768695047241,-500.0,0.00016438,3]
[402521989,1768695047253,-500.0,0.00016438,2]
[402521992,1768695047264,-575.88539769,0.00016438,3]
[402521994,1768695047275,-1252.44,0.00016438,3]
[402521996,1768695047287,-1284.04,0.00016438,3]
[402521998,1768695047299,-500.0,0.00016438,2]
[402522000,1768695047313,-306.0,0.00016466,2]
[402522003,1768695047328,-168.0,0.00016483,2]
[402522005,1768695047340,-168.0,0.00016578,2]
[402522007,1768695047353,-1267.08456643,0.00016612,2]
[402522009,1768695047366,-12003.87244005,0.00016612,2]
[402522012,1768695047379,-174.61919141,0.00016634,2]
[402522014,1768695047393,-478.75725327,0.00016634,2]
[402522017,1768695047405,-2312.83697232,0.00016634,2]
[402522019,1768695047415,-168.0,0.00016665,2]
[402522021,1768695047427,-160.0,0.000167,2]
[402522023,1768695047437,-160.0,0.000167,2]
[402522025,1768695047448,-500.0,0.00016705,2]
[402522027,1768695047460,-364.29075177,0.00016712,3]
[402522029,1768695047473,-500.0,0.00016712,3]
[402522032,1768695047486,-500.0,0.00016712,3]
[402522034,1768695047497,-500.0,0.00016712,3]
[402522036,1768695047508,-500.0,0.00016712,3]
[402522038,1768695047519,-500.0,0.00016712,3]
[402522040,1768695047529,-500.0,0.00016712,3]
[402522043,1768695047542,-500.0,0.00016712,3]
[402522045,1768695047553,-663.47,0.00016712,3]
[402522047,1768695047564,-500.0,0.00016712,3]
[402522049,1768695047574,-500.0,0.00016712,3]
[402522051,1768695047585,-500.0,0.00016712,3]
[402522053,1768695047596,-500.0,0.00016712,3]
[402522055,1768695047607,-500.0,0.00016712,3]
[402522058,1768695047618,-500.0,0.00016712,3]
[402522059,1768695047629,-652.74,0.00016712,3]
[402522061,1768695047640,-1168.85,0.00016712,3]
[402522063,1768695047651,-500.0,0.00016712,3]
[402522066,1768695047662,-500.0,0.00016712,3]
[402522068,1768695047673,-500.0,0.00016712,3]
[402522070,1768695047686,-500.0,0.00016712,3]
[402522072,1768695047697,-500.0,0.00016712,3]
[402522073,1768695047708,-500.0,0.00016712,3]
[402522074,1768695047720,-195.67,0.00016712,3]
[402522075,1768695047731,-747.71,0.00016712,3]
[402522076,1768695047742,-704.83,0.00016712,3]
[402522077,1768695047754,-729.86,0.00016712,3]
[402522078,1768695047765,-643.56,0.00016712,3]
[402522079,1768695047776,-620.46,0.00016712,3]
[402522080,1768695047791,-500.0,0.00016712,3]
[402522081,1768695047803,-530.57,0.00016712,3]
[402522082,1768695047814,-500.0,0.00016712,3]
[402522083,1768695047826,-500.0,0.00016712,3]
[402522084,1768695047837,-1000.0,0.00016712,2]
[402522085,1768695047848,-500.0,0.00016712,3]
[402522086,1768695047860,-1056.51,0.00016712,3]
[402522087,1768695047871,-500.0,0.00016712,3]
[402522088,1768695047883,-500.0,0.00016712,3]
[402522089,1768695047895,-553.6,0.00016712,3]
[402522090,1768695047906,-500.0,0.00016712,3]
[402522091,1768695047918,-500.0,0.00016712,3]
[402522092,1768695047930,-500.0,0.00016712,3]
[402522093,1768695047941,-500.0,0.00016712,3]
[402522094,1768695047953,-500.0,0.00016712,3]
[402522095,1768695047969,-500.0,0.00016712,3]
[402522096,1768695047981,-500.0,0.00016712,3]
[402522097,1768695047995,-586.44,0.00016712,3]
[402522098,1768695048007,-500.0,0.00016712,3]
[402522100,1768695048017,-500.0,0.00016712,3]
[402522101,1768695048030,-819.9,0.00016712,3]
[402522103,1768695048042,-500.0,0.00016712,3]
[402522105,1768695048055,-500.0,0.00016712,3]
[402522107,1768695048066,-500.0,0.00016712,3]
[402522109,1768695048078,-557.15103403,0.00016712,3]
[402522111,1768695048089,-500.0,0.00016712,3]
[402522113,1768695048099,-500.0,0.00016712,3]
[402522115,1768695048111,-500.0,0.00016712,3]
[402522118,1768695048121,-500.0,0.00016712,3]
[402522120,1768695048132,-500.0,0.00016712,3]
[402522122,1768695048143,-955.79,0.00016712,3]
[402522124,1768695048154,-500.0,0.00016712,3]
[402522126,1768695048165,-500.0,0.00016712,3]
[402522128,1768695048176,-500.0,0.00016712,3]
[402522130,1768695048187,-500.0,0.00016712,3]
[402522132,1768695048197,-500.0,0.00016712,3]
[402522135,1768695048208,-500.0,0.00016712,3]
[402522137,1768695048219,-599.91,0.00016712,3]
[402522139,1768695048230,-941.77,0.00016712,3]
[402522141,1768695048241,-500.0,0.00016712,3]
[402522143,1768695048252,-500.0,0.00016712,3]
[402522145,1768695048263,-500.0,0.00016712,3]
[402522147,1768695048273,-500.0,0.00016712,3]
[402522149,1768695048284,-1200.0,0.00016712,2]
[402522151,1768695048295,-704.32,0.00016712,3]
[402522153,1768695048306,-500.0,0.00016712,3]
[402522155,1768695048317,-554.84,0.00016712,3]
[402522157,1768695048328,-500.0,0.00016712,3]
[402522159,1768695048339,-500.0,0.00016712,3]
[402522162,1768695048350,-553.0,0.00016712,3]
[402522164,1768695048361,-500.0,0.00016712,3]
[402522166,1768695048372,-500.0,0.00016712,3]
[402522168,1768695048383,-500.0,0.00016712,3]
[402522170,1768695048394,-765.4,0.00016712,3]
[402522172,1768695048405,-500.0,0.00016712,3]
[402522175,1768695048416,-151.0,0.00016712,2]
[402522177,1768695048427,-520.25,0.00016712,3]
[402522179,1768695048438,-500.0,0.00016712,3]
[402522181,1768695048448,-500.0,0.00016712,3]
[402522183,1768695048459,-545.75,0.00016712,3]
[402522185,1768695048470,-500.0,0.00016712,3]
[402522187,1768695048481,-500.0,0.00016712,3]
[402522188,1768695048492,-500.0,0.00016712,3]
[402522191,1768695048503,-500.0,0.00016712,3]
[402522193,1768695048513,-568.91,0.00016712,3]
[402522195,1768695048524,-559.26,0.00016712,3]
[402522197,1768695048534,-500.0,0.00016712,3]
[402522199,1768695048545,-837.56,0.00016712,3]
[402522201,1768695048556,-500.0,0.00016712,3]
[402522203,1768695048566,-500.0,0.00016712,3]
[402522205,1768695048577,-748.54,0.00016712,3]
[402522208,1768695048593,-500.0,0.00016712,3]
[402522210,1768695048606,-500.0,0.00016712,3]
[402522212,1768695048619,-500.0,0.00016712,3]
[402522215,1768695048632,-1064.55,0.00016712,3]
[402522217,1768695048646,-502.5,0.00016712,3]
[402522219,1768695048659,-500.0,0.00016712,3]
[402522222,1768695048671,-500.0,0.00016712,3]
[402522224,1768695048685,-500.0,0.00016712,3]
[402522226,1768695048696,-500.0,0.00016712,3]
[402522228,1768695048709,-826.78,0.00016712,3]
[402522231,1768695048723,-500.0,0.00016712,3]
[402522233,1768695048735,-608.07,0.00016712,3]
[402522235,1768695048748,-500.0,0.00016712,3]
[402522238,1768695048761,-500.0,0.00016712,3]
[402522240,1768695048772,-500.0,0.00016712,3]
[402522242,1768695048784,-500.0,0.00016712,3]
[402522244,1768695048795,-500.0,0.00016712,3]
[402522246,1768695048807,-500.0,0.00016712,3]
[402522248,1768695048819,-621.29598782,0.00016712,3]
[402522251,1768695048830,-500.0,0.00016712,3]
[402522253,1768695048843,-500.0,0.00016712,3]
[402522255,1768695048854,-500.0,0.00016712,3]
[402522257,1768695048866,-500.0,0.00016712,3]
[402522260,1768695048877,-151.0,0.00016712,2]
[402522262,1768695048889,-1137.76,0.00016712,3]
[402522264,1768695048900,-574.19,0.00016712,3]
[402522266,1768695048912,-500.0,0.00016712,3]
[402522268,1768695048924,-743.43,0.00016712,3]
[402522271,1768695048935,-539.58941643,0.00016712,3]
[402522273,1768695048946,-500.0,0.00016712,3]
[402522275,1768695048959,-960.15,0.00016712,3]
[402522277,1768695048971,-521.69,0.00016712,3]
[402522279,1768695048982,-500.0,0.00016712,3]
[402522281,1768695048996,-500.0,0.00016712,3]
[402522283,1768695049007,-685.1,0.00016712,3]
[402522286,1768695049018,-500.0,0.00016712,3]
[402522288,1768695049030,-656.0,0.00016712,3]
[402522290,1768695049042,-500.0,0.00016712,3]
[402522292,1768695049053,-514.02,0.00016712,3]
[402522295,1768695049066,-322.95433937,0.00016712,3]
[402522297,1768695049081,-500.0,0.00016712,3]
[402522299,1768695049092,-574.06,0.00016712,3]
[402522301,1768695049103,-500.0,0.00016712,3]
[402522304,1768695049115,-500.0,0.00016712,3]
[402522306,1768695049126,-500.0,0.00016712,3]
[402522308,1768695049138,-500.0,0.00016712,3]
[402522310,1768695049149,-500.0,0.00016712,3]
[402522312,1768695049160,-500.0,0.00016712,3]
[402522315,1768695049172,-1106.69,0.00016712,3]
[402522317,1768695049183,-940.0,0.00016712,3]
[402522319,1768695049194,-500.0,0.00016712,3]
[402522321,1768695049206,-500.0,0.00016712,3]
[402522323,1768695049217,-906.59,0.00016712,3]
[402522325,1768695049228,-500.0,0.00016712,3]
[402522328,1768695049239,-892.32,0.00016712,3]
[402522330,1768695049251,-597.8010965,0.00016712,3]
[402522332,1768695049262,-500.0,0.00016712,3]
[402522334,1768695049273,-500.0,0.00016712,3]
[402522336,1768695049285,-500.0,0.00016712,3]
[402522338,1768695049296,-711.16,0.00016712,3]
[402522341,1768695049308,-500.0,0.00016712,3]
[402522343,1768695049319,-500.0,0.00016712,3]
[402522345,1768695049331,-500.0,0.00016712,3]
[402522347,1768695049342,-500.91,0.00016712,3]
[402522349,1768695049354,-500.0,0.00016712,3]
[402522351,1768695049366,-500.0,0.00016712,3]
[402522354,1768695049377,-500.0,0.00016712,3]
[402522356,1768695049388,-500.0,0.00016712,3]
[402522358,1768695049399,-500.0,0.00016712,3]
[402522360,1768695049414,-500.0,0.00016712,3]
[402522362,1768695049425,-500.0,0.00016712,3]
[402522365,1768695049436,-500.0,0.00016712,3]
[402522367,1768695049448,-500.0,0.00016712,3]
[402522369,1768695049459,-500.0,0.00016712,3]
[402522371,1768695049470,-500.0,0.00016712,3]
[402522373,1768695049481,-500.0,0.00016712,3]
[402522375,1768695049493,-500.0,0.00016712,3]
[402522377,1768695049505,-894.88,0.00016712,3]
[402522380,1768695049516,-500.0,0.00016712,3]
[402522382,1768695049527,-500.0,0.00016712,3]
[402522384,1768695049537,-500.0,0.00016712,3]
[402522386,1768695049549,-736.04,0.00016712,3]
[402522388,1768695049560,-500.0,0.00016712,3]
[402522390,1768695049571,-1614.85,0.00016712,3]
[402522392,1768695049582,-500.0,0.00016712,3]
[402522394,1768695049593,-811.91,0.00016712,3]
[402522397,1768695049608,-703.87,0.00016712,3]
[402522399,1768695049618,-500.0,0.00016712,3]
[402522401,1768695049629,-873.83,0.00016712,3]
[402522403,1768695049641,-500.0,0.00016712,3]
[402522405,1768695049652,-500.0,0.00016712,3]
[402522407,1768695049664,-500.0,0.00016712,3]
[402522410,1768695049675,-500.0,0.00016712,3]
[402522412,1768695049686,-500.0,0.00016712,3]
[402522414,1768695049698,-500.0,0.00016712,3]
[402522416,1768695049709,-500.0,0.00016712,3]
[402522418,1768695049720,-500.0,0.00016712,3]
[402522420,1768695049731,-513.17,0.00016712,3]
[402522422,1768695049742,-759.75,0.00016712,3]
[402522424,1768695049752,-500.0,0.00016712,3]
[402522427,1768695049764,-881.95,0.00016712,3]
[402522429,1768695049776,-527.44065254,0.00016712,3]
[402522431,1768695049788,-846.47,0.00016712,3]
[402522434,1768695049800,-220.77009767,0.00016712,3]
[402522435,1768695049810,-503.5,0.00016712,3]
[402522438,1768695049820,-500.0,0.00016712,3]
[402522439,1768695049829,-500.0,0.00016712,3]
[402522441,1768695049839,-624.66,0.00016712,3]
[402522443,1768695049849,-500.0,0.00016712,3]
[402522445,1768695049858,-610.82,0.00016712,3]
[402522447,1768695049868,-497.71228405,0.00016712,3]
[402522449,1768695049878,-500.0,0.00016712,3]
[402522451,1768695049887,-500.0,0.00016712,3]
[402522453,1768695049897,-807.78,0.00016712,3]
[402522455,1768695049906,-898.64,0.00016712,3]
[402522457,1768695049916,-618.06,0.00016712,3]
[402522459,1768695049925,-500.0,0.00016712,3]
[402522507,1768695050388,-596.2,0.00016712,3]
[402522508,1768695050421,-500.0,0.00016712,3]
[402522509,1768695050446,-500.0,0.00016712,3]
[402522510,1768695050459,-1256.62,0.00016712,3]
[402522511,1768695050470,-535.66,0.00016712,3]
[402522512,1768695050480,-500.0,0.00016712,3]
[402522513,1768695050489,-500.0,0.00016712,3]
[402522515,1768695050498,-500.0,0.00016712,3]
[402522517,1768695050508,-1108.08,0.00016712,3]
[402522519,1768695050517,-500.0,0.00016712,3]
[402522522,1768695050528,-854.95,0.00016712,3]
[402522524,1768695050540,-500.0,0.00016712,3]
[402522525,1768695050550,-500.0,0.00016712,3]
[402522528,1768695050559,-515.16,0.00016712,3]
[402522530,1768695050569,-500.0,0.00016712,3]
[402522531,1768695050578,-500.0,0.00016712,3]
[402522534,1768695050588,-500.0,0.00016712,3]
[402522536,1768695050597,-500.0,0.00016712,3]
[402522538,1768695050606,-500.0,0.00016712,3]
[402522540,1768695050615,-500.0,0.00016712,3]
[402522542,1768695050625,-500.0,0.00016712,3]
[402522544,1768695050635,-532.66063458,0.00016712,3]
[402522545,1768695050644,-500.0,0.00016712,3]
[402522547,1768695050654,-500.0,0.00016712,3]
[402522550,1768695050663,-500.0,0.00016712,3]
[402522551,1768695050673,-500.0,0.00016712,3]
[402522553,1768695050683,-500.0,0.00016712,3]
[402522555,1768695050692,-300.0,0.00016712,2]
[402522557,1768695050702,-843.72,0.00016712,3]
[402522559,1768695050711,-500.0,0.00016712,3]
[402522561,1768695050720,-500.0,0.00016712,3]